bitfinex/quotes_ETHUSD_20220218
["timestamp","ask_amount","ask_price","bid_price","bid_amount"]
[1645215802560,1.0,2783.2,2782.7,0.02968527]
[1645215803060,0.89470157,2783.4,2782.7,0.02968527]
[1645215803263,11.84470157,2783.4,2782.7,0.02968527]
[1645215803661,12.74361157,2783.4,2782.7,0.02968527]
[1645215803862,1.41693,2783.3,2782.7,0.02968527]
[1645215804266,1.71693,2783.3,2782.7,0.02968527]
[1645215804912,0.89887,2783.5,2782.7,0.02968527]
[1645215805110,0.89470157,2783.8,2782.7,0.02968527]
[1645215805312,0.89470157,2784.0,2782.7,5.02958621]
[1645215805512,0.89470157,2784.2,2783.6,0.84248984]
[1645215805710,0.00263842,2784.0,2783.6,1.74095424]
[1645215805911,0.00263842,2784.0,2783.7,4.3889]
[1645215806110,0.00263842,2784.0,2783.8,1.2135]
[1645215806507,0.89470157,2784.5,2783.8,1.2135]
[1645215806912,0.00263897,2784.0,2783.8,1.2135]
[1645215807812,1.79324157,2784.5,2783.8,1.2135]
[1645215808008,0.00263897,2784.0,2783.8,1.2135]
[1645215808660,0.518,2783.9,2783.8,1.2135]
[1645215808857,0.518,2783.9,2783.8,0.69734078]
[1645215809856,0.36929333,2783.9,2783.8,0.69734078]
[1645215810459,0.36929333,2783.9,2783.3,1.2291]
[1645215810658,2.1627649,2783.9,2782.7,7.37592323]
[1645215810859,0.3,2783.8,2782.7,8.27459323]
[1645215811057,0.00263895,2784.0,2782.7,8.27459323]
[1645215811357,0.00263895,2784.0,2783.1,0.89309918]
[1645215811358,0.89470157,2784.0,2783.1,0.89309918]
[1645215811556,0.01741996,2783.9,2783.2,2.0808169]
[1645215811757,0.01741996,2783.9,2783.2,1.1822]
[1645215813007,0.71501996,2783.9,2783.2,1.1822]
[1645215813210,0.53541996,2783.9,2783.2,1.1822]
[1645215814208,0.89874,2783.8,2783.2,1.1822]
[1645215814410,0.79410072,2783.6,2783.2,1.1822]
[1645215815117,1.19470157,2783.7,2783.2,1.1822]
[1645215815313,0.89470157,2783.5,2783.2,1.1822]
[1645215815665,1.71270157,2783.4,2783.2,1.1822]
[1645215816557,0.89896,2783.3,2782.7,4.2831]
[1645215816755,0.518,2783.2,2782.7,4.2831]
[1645215816958,1.41697,2783.2,2782.7,4.2831]
[1645215817957,0.518,2783.2,2782.7,4.2831]
[1645215819515,1.41701,2783.2,2782.7,4.2831]
[1645215819712,2.31171157,2783.2,2782.7,4.2831]
[1645215819913,0.518,2783.2,2782.7,4.2831]
[1645215821313,2.09359157,2783.3,2782.7,4.2831]
[1645215821512,2.09359157,2783.3,2782.7,3.7831]
[1645215821513,0.75046492,2783.3,2782.7,3.7831]
[1645215821713,1.64516649,2783.3,2782.7,3.7831]
[1645215823363,1.34516649,2783.3,2782.7,4.6818285]
[1645215823564,0.45046492,2783.3,2782.7,4.6818285]
[1645215824864,0.01846492,2783.3,2782.7,4.6818285]
[1645215825169,0.01846492,2783.3,2783.1,0.67533886]
[1645215825764,0.01749555,2783.4,2783.2,6.5]
[1645215825969,9.555e-05,2783.4,2783.2,6.5]
[1645215826164,0.89470157,2783.9,2783.2,6.5]
[1645215826368,0.89470157,2783.9,2783.3,1.796881]
[1645215826565,0.89470157,2783.9,2783.3,0.898431]
[1645215826766,0.89470157,2783.9,2783.2,1.2256]
[1645215827016,0.89470157,2783.6,2783.2,1.2256]
[1645215827411,0.89470157,2783.7,2783.2,1.2256]
[1645215827612,0.89470157,2783.5,2783.2,1.2256]
[1645215828010,0.89470157,2783.4,2783.2,1.2256]
[1645215828525,0.5129994,2783.1,2782.9,0.03302937]
[1645215828713,4.39785219,2783.0,2782.9,0.03302937]
[1645215828910,0.5129994,2783.1,2782.9,0.03302937]
[1645215829211,0.8978546,2783.0,2782.9,0.03302937]
[1645215829413,0.89776747,2783.0,2782.9,0.03302937]
[1645215829813,1.41076687,2783.1,2782.9,0.03302937]
[1645215830418,0.5129994,2783.1,2782.9,0.03302937]
[1645215831372,0.5129994,2783.1,2782.7,3.76614373]
[1645215834182,1.34941655,2784.0,2783.6,0.75848262]
[1645215834183,0.89776747,2783.8,2783.6,0.75848262]
[1645215834405,0.89776747,2783.8,2782.8,6.5]
[1645215834810,0.89776747,2783.9,2783.0,0.89848]
[1645215835006,0.89776747,2783.9,2783.1,1.1729]
[1645215835612,1.34677828,2784.2,2783.1,1.1729]
[1645215835613,0.89776747,2783.5,2783.1,1.1729]
[1645215835809,0.89776747,2783.7,2783.1,1.1729]
[1645215836011,0.89776747,2783.7,2783.2,0.87965978]
[1645215836808,0.89776747,2783.7,2783.1,1.1729]
[1645215837709,0.89776747,2783.7,2783.2,0.8985787]
[1645215837910,1.89776747,2784.0,2783.2,0.8985787]
[1645215838173,1.9004061,2784.0,2783.2,0.8985787]
[1645215838961,1.89776747,2784.0,2783.5,0.8080788]
[1645215839161,1.90040624,2784.0,2783.5,1.7065814]
[1645215839761,0.89776747,2783.9,2783.5,1.7065814]
[1645215840562,1.90040632,2784.0,2783.5,0.8080788]
[1645215840963,0.89776747,2783.9,2783.5,0.8080788]
[1645215841167,1.00263885,2784.0,2783.1,1.1729]
[1645215841168,0.0186853,2783.6,2783.1,1.1729]
[1645215841368,0.03811382,2783.6,2783.1,1.1729]
[1645215842019,0.93588129,2783.6,2783.1,1.1729]
[1645215842410,0.89885,2783.5,2783.1,1.1729]
[1645215842812,1.19885,2783.5,2782.8,6.5]
[1645215843015,1.07736747,2783.4,2782.8,6.5]
[1645215843213,1.19776747,2783.5,2782.8,6.5]
[1645215844012,1.19776747,2783.5,2782.9,0.67255436]
[1645215844818,0.03811382,2783.6,2782.9,0.67255436]
[1645215845016,1.382e-05,2783.6,2782.9,5.68533808]
[1645215845218,0.89776747,2784.1,2783.1,4.99990094]
[1645215845415,0.00263849,2784.0,2783.1,15.94990094]
[1645215845679,3.849e-05,2784.0,2783.2,13.71715811]
[1645215845863,3.849e-05,2784.0,2783.7,0.76035785]
[1645215846065,3.849e-05,2784.0,2783.6,6.52806]
[1645215846264,6.84169789,2784.6,2783.7,0.8982613]
[1645215846464,0.89776747,2784.3,2783.7,0.8982613]
[1645215846762,0.89776747,2784.1,2783.6,5.6298]
[1645215846965,11.84776747,2784.1,2783.6,5.6298]
[1645215847162,11.71015845,2784.0,2783.6,5.6298]
[1645215847361,0.76015845,2784.0,2783.6,5.6298]
[1645215847562,0.89776747,2783.8,2783.6,5.6298]
[1645215847961,0.89776747,2783.9,2783.6,5.6298]
[1645215848164,0.89776747,2784.0,2783.6,5.6298]
[1645215848363,0.89776747,2784.1,2783.6,5.6298]
[1645215848568,12.6879,2784.7,2783.6,5.6298]
[1645215848569,0.89776747,2784.0,2783.6,5.6298]
[1645215848963,0.89776747,2783.9,2783.6,5.6298]
[1645215849417,0.89776747,2783.7,2783.6,5.6298]
[1645215850817,0.89776747,2783.8,2783.6,5.6298]
[1645215851016,0.89776747,2783.9,2783.6,5.6298]
[1645215851223,0.89776747,2783.8,2783.6,5.6298]
[1645215851417,2.34941698,2784.1,2783.6,5.6298]
[1645215851418,0.89776747,2783.9,2783.6,5.6298]
[1645215852620,0.89776747,2784.0,2783.6,5.6298]
[1645215852819,0.89776747,2784.0,2783.6,6.5281479]
[1645215853022,0.90163757,2784.2,2783.7,7.39827]
[1645215853266,1.34677828,2784.3,2783.7,6.5]
[1645215853267,0.90163757,2784.3,2783.7,6.5]
[1645215853668,0.90163757,2784.1,2783.6,5.6298]
[1645215853872,0.90163757,2784.0,2783.6,5.6298]
[1645215854268,0.90163757,2783.9,2783.6,5.6298]
[1645215854766,0.90163757,2784.0,2783.6,5.6298]
[1645215854968,0.90163757,2783.9,2783.6,5.6298]
[1645215855167,0.90163757,2784.0,2783.6,5.6298]
[1645215855570,0.90163757,2784.2,2783.9,0.79073752]
[1645215855769,0.90163757,2784.2,2783.6,5.6298]
[1645215856375,0.90163757,2784.1,2783.6,5.6298]
[1645215856913,0.90163757,2784.1,2783.7,0.79295395]
[1645215860320,0.85378702,2784.1,2783.7,0.79295395]
[1645215860765,0.85378702,2784.1,2783.8,0.01764385]
[1645215864916,0.30263882,2784.2,2783.8,0.01764385]
[1645215865116,1.30263882,2784.2,2783.8,0.01764385]
[1645215865317,1.3,2784.2,2783.8,0.01764385]
[1645215865818,0.00263885,2784.2,2783.8,0.01764385]
[1645215866016,3.885e-05,2784.2,2784.0,0.01515983]
[1645215866420,3.885e-05,2784.2,2784.0,0.91332313]
[1645215866626,6.46847074,2785.7,2784.1,4.6927]
[1645215866627,1.34677828,2785.0,2784.1,4.6927]
[1645215866821,1.34677828,2785.0,2784.5,0.75255602]
[1645215867019,1.34677828,2784.9,2784.5,0.75255602]
[1645215868479,1.34677828,2784.8,2784.2,1.7961867]
[1645215868672,1.34677828,2784.8,2784.1,1.1927]
[1645215869074,0.3,2784.7,2784.1,1.1927]
[1645215869273,0.00263883,2784.6,2784.1,1.1927]
[1645215869475,0.90077611,2784.4,2784.1,1.1927]
[1645215869671,0.00263883,2784.6,2784.1,1.1927]
[1645215869672,0.90077611,2784.5,2784.1,1.1927]
[1645215870370,0.00263888,2784.4,2784.1,1.1927]
[1645215870771,0.90341499,2784.4,2784.1,1.1927]
[1645215871172,0.01401672,2784.2,2784.1,1.1927]
[1645215874722,2.79717659,2784.9,2784.1,1.1927]
[1645215874723,0.90097778,2784.8,2784.2,6.5]
[1645215874925,0.90097778,2785.1,2784.2,6.932]
[1645215875126,0.90097778,2784.9,2784.2,6.932]
[1645215875522,0.90097778,2785.0,2784.2,10.5242794]
[1645215875769,0.90097778,2784.9,2784.2,11.4220351]
[1645215876066,0.90097778,2785.1,2784.9,0.8947057]
[1645215876666,0.90097778,2785.1,2784.3,1.796]
[1645215876868,0.90097778,2785.1,2784.4,1.7962057]
[1645215877265,0.90097778,2785.0,2784.4,1.7962057]
[1645215877467,0.90097778,2785.0,2784.5,1.1369]
[1645215877666,0.00263877,2784.9,2784.5,2.0349977]
[1645215878066,0.00263877,2784.9,2784.6,0.69398401]
[1645215878666,0.90097778,2785.3,2784.6,0.69398401]
[1645215878967,0.00263877,2784.9,2784.7,0.8979719]
[1645215879427,0.00263877,2784.9,2784.6,2.48992771]
[1645215879819,0.90097778,2785.2,2784.6,2.48992771]
[1645215880018,0.90097778,2785.1,2784.6,2.48992771]
[1645215880219,0.00263877,2784.9,2784.6,2.48992771]
[1645215880524,3.877e-05,2784.9,2784.6,2.48992771]
[1645215880722,3.877e-05,2784.9,2784.7,4.3979583]
[1645215880921,3.877e-05,2784.9,2784.7,0.8979583]
[1645215881121,0.90097778,2785.3,2785.0,0.01060074]
[1645215881321,0.90097778,2785.2,2785.0,0.01060074]
[1645215881522,0.90097778,2785.3,2785.0,0.01060074]
[1645215882125,1.34677828,2785.5,2785.0,0.01060074]
[1645215882126,0.90097778,2785.2,2785.0,0.01060074]
[1645215882324,0.90097778,2785.4,2785.0,0.01060074]
[1645215882523,0.00263868,2785.3,2785.0,0.01060074]
[1645215883365,1.34685606,2785.7,2785.1,6.5]
[1645215883570,14.54953908,2786.5,2785.3,6.5]
[1645215883571,1.34677828,2786.1,2785.3,6.5]
[1645215883767,0.09677828,2786.4,2785.4,4.7307]
[1645215883968,0.09677828,2786.4,2785.5,4.3896]
[1645215884365,4.3098,2786.6,2786.4,0.83692054]
[1645215884566,0.30219745,2786.0,2785.9,0.8977122]
[1645215884875,9.745e-05,2786.0,2785.6,0.89772]
[1645215885666,9.745e-05,2786.0,2785.6,1.7953317]
[1645215885872,9.745e-05,2786.0,2785.5,4.3896]
[1645215886067,0.1794,2785.9,2785.4,1.2307]
[1645215886666,1.82759292,2786.0,2785.4,1.2307]
[1645215886922,0.6974,2785.9,2785.1,0.04643657]
[1645215887122,10.95,2785.8,2785.1,0.04643657]
[1645215887329,10.95,2785.6,2785.1,0.04643657]
[1645215887528,11.468,2785.5,2785.1,0.04643657]
[1645215887721,1.79667,2785.3,2785.1,0.04643657]
[1645215888222,2.09667,2785.3,2785.1,0.04643657]
[1645215889223,0.518,2785.2,2785.1,0.04643657]
[1645215889824,0.89832,2785.1,2784.8,4.5763]
[1645215890028,0.89832,2785.1,2784.4,0.00219161]
[1645215890029,1.79692,2785.0,2784.4,0.00219161]
[1645215890224,0.518,2784.9,2784.4,0.00219161]
[1645215890664,0.818,2784.9,2784.1,1.2286]
[1645215890886,1.818,2784.9,2784.4,0.00219161]
[1645215891063,1.518,2784.9,2784.4,0.00219161]
[1645215891666,0.89849,2784.8,2784.4,0.00219161]
[1645215891865,0.818,2784.7,2784.1,1.98880412]
[1645215892065,0.818,2784.7,2784.4,0.00197245]
[1645215892267,1.0,2784.9,2784.4,0.00197245]
[1645215892466,0.6974,2785.1,2784.4,0.00197245]
[1645215892467,1.0,2785.0,2784.4,0.00197245]
[1645215892672,1.19988862,2784.9,2784.4,0.00197245]
[1645215892865,0.89988862,2784.9,2784.4,0.00197245]
[1645215893068,0.89988862,2784.9,2784.1,1.98880412]
[1645215893266,0.89988862,2784.9,2784.4,0.00197245]
[1645215893666,1.19988862,2785.0,2784.4,0.00197245]
[1645215894070,0.89988862,2785.0,2784.6,0.81559224]
[1645215894525,0.89988862,2785.2,2784.6,1.71369544]
[1645215894727,0.89988862,2785.3,2784.7,1.1844]
[1645215894923,0.90246111,2785.4,2784.7,1.1844]
[1645215895523,0.89988862,2785.3,2784.7,1.1844]
[1645215895723,0.89988862,2785.0,2784.7,1.1844]
[1645215896623,0.89988862,2785.0,2784.6,0.01426392]
[1645215896624,12.81777361,2784.9,2784.6,0.01426392]
[1645215896821,0.3,2784.7,2784.6,0.01426392]
[1645215897220,0.818,2784.7,2784.6,0.01426392]
[1645215899673,0.818,2784.7,2784.6,0.00915999]
[1645215900471,2.16777361,2784.7,2784.6,0.00915999]
[1645215900676,12.2474,2784.7,2784.6,0.00915999]
[1645215900873,22.2474,2784.7,2784.4,0.00189489]
[1645215901077,10.95,2784.5,2784.4,0.00189489]
[1645215901272,12.2474,2784.5,2784.4,0.00189489]
[1645215901471,0.89879,2784.0,2783.5,5.8252]
[1645215901675,0.518,2783.9,2783.5,5.8252]
[1645215902421,0.518,2783.9,2783.1,3.234]
[1645215902422,11.84882,2783.7,2783.0,4.3088]
[1645215902632,11.84882,2783.7,2782.7,4.6494]
[1645215902633,0.83846251,2783.2,2782.7,4.6494]
[1645215902821,0.518,2783.1,2782.7,4.6494]
[1645215903922,0.89892,2783.0,2782.7,4.6494]
[1645215904128,0.518,2783.1,2782.9,0.80498174]
[1645215904328,0.1796,2783.7,2783.0,6.5]
[1645215904532,1.90076888,2783.9,2783.0,6.5]
[1645215904730,1.0,2784.0,2783.0,6.5]
[1645215904928,1.90076888,2784.1,2783.0,6.45]
[1645215905424,0.88978574,2784.0,2783.4,0.00189366]
[1645215905669,1.0,2784.1,2783.4,0.80462588]
[1645215906169,0.90076888,2784.2,2783.4,0.80462588]
[1645215906369,1.37000298,2784.5,2783.4,0.80273222]
[1645215906370,0.90076888,2784.3,2783.4,0.80273222]
[1645215906571,0.0383032,2784.5,2783.6,0.00189378]
[1645215906770,0.73511084,2784.5,2783.7,0.8984471]
[1645215907172,0.73511084,2784.5,2783.6,0.00189378]
[1645215907370,0.73511084,2784.5,2783.6,4.64349378]
[1645215907570,0.73511084,2784.5,2783.6,4.6416]
[1645215907771,0.73511084,2784.5,2783.9,0.00189357]
[1645215907973,1.79930888,2784.4,2783.9,0.00189357]
[1645215908271,0.89854,2784.4,2783.9,0.00189357]
[1645215908671,0.89854,2784.4,2783.6,4.6416]
[1645215909071,0.89854,2784.4,2784.0,0.00189351]
[1645215909276,1.79930888,2784.4,2784.0,0.00189351]
[1645215909526,0.89854,2784.4,2784.0,0.00189351]
[1645215909929,0.89854,2784.4,2783.9,0.86564358]
[1645215910128,0.89854,2784.4,2784.1,0.00189342]
[1645215911227,0.89854,2784.4,2783.6,4.6416]
[1645215911429,0.89854,2784.4,2784.1,0.00189339]
[1645215911430,1.79930888,2784.4,2784.1,0.00189339]
[1645215911631,11.85076888,2784.2,2784.1,0.00189339]
[1645215911828,12.1294,2784.2,2784.1,0.00189339]
[1645215912029,13.29754274,2784.2,2784.1,0.00189339]
[1645215912226,2.34754274,2784.2,2784.1,0.00189339]
[1645215912429,13.29754274,2784.2,2782.6,1.1546]
[1645215912630,10.95,2783.7,2783.6,0.00757496]
[1645215912828,12.9476,2783.7,2783.6,0.00757496]
[1645215913027,1.9976,2783.7,2783.6,0.00757496]
[1645215913462,2.59481395,2783.7,2782.8,0.74292224]
[1645215913667,1.798951,2783.6,2782.7,1.1863]
[1645215913863,0.518,2783.5,2782.7,1.1863]
[1645215914663,1.41689,2783.5,2782.8,3.7771]
[1645215914863,0.89889,2783.5,2782.8,3.7771]
[1645215915063,1.19889,2783.5,2782.8,3.7771]
[1645215915264,0.72434589,2783.2,2782.8,3.7771]
[1645215915763,1.02434589,2783.2,2782.8,3.7771]
[1645215917415,0.72434589,2783.2,2782.9,0.00217386]
[1645215918419,0.72434589,2783.2,2782.8,3.7771]
[1645215918619,0.72434589,2783.2,2782.9,0.00217382]
[1645215918620,1.62329589,2783.2,2782.9,0.00217382]
[1645215919221,1.92329589,2783.2,2782.9,0.00217382]
[1645215919421,0.3,2783.2,2782.8,3.7771]
[1645215919626,0.432,2783.7,2782.9,3.5]
[1645215919834,4.1519,2784.1,2782.9,3.50217382]
[1645215920028,4.14743891,2784.1,2782.9,3.50217382]
[1645215920228,4.14743891,2784.1,2783.0,0.89856]
[1645215920427,0.90269901,2784.4,2783.1,3.5]
[1645215920428,0.00263801,2784.4,2783.1,3.5]
[1645215920670,0.89851,2784.3,2783.7,0.71913176]
[1645215920868,0.89851,2784.3,2783.4,0.8985498]
[1645215921067,0.89851,2784.3,2783.4,0.00217343]
[1645215921865,0.89851,2784.3,2783.4,0.85871318]
[1645215922065,0.89865,2784.1,2783.4,0.85871318]
[1645215922267,0.89865,2784.1,2783.6,0.00217332]
[1645215923167,0.89874,2784.0,2783.3,4.1688]
[1645215923466,0.89874,2784.0,2783.6,0.00217332]
[1645215923467,0.89875,2783.8,2783.6,0.00217332]
[1645215924074,0.95171257,2783.7,2783.6,0.00217332]
[1645215924268,2.38371257,2783.7,2783.2,1.1391]
[1645215924527,0.00080388,2783.5,2783.2,1.1391]
[1645215925727,0.00080388,2783.5,2783.2,1.14127359]
[1645215926731,0.00080388,2783.5,2783.2,1.1391]
[1645215927030,0.00080388,2783.5,2783.2,1.14127359]
[1645215927928,0.00080388,2783.5,2783.2,1.1391]
[1645215928164,0.00080388,2783.5,2783.4,0.86941981]
[1645215929164,0.00080388,2783.5,2783.2,2.9361286]
[1645215929371,0.00080388,2783.5,2783.3,0.00217351]
[1645215930368,0.00080388,2783.5,2783.2,1.1391]
[1645215930773,0.00080388,2783.5,2783.3,0.00217355]
[1645215930971,9.621e-05,2783.4,2783.3,3.50217355]
[1645215931170,9.621e-05,2783.4,2783.3,0.00217355]
[1645215931768,9.621e-05,2783.4,2783.3,0.8985569]
[1645215932217,9.621e-05,2783.4,2783.2,2.93825819]
[1645215932735,9.621e-05,2783.4,2783.2,2.9360846]
[1645215932918,9.621e-05,2783.4,2783.2,2.93792765]
[1645215933917,9.621e-05,2783.4,2783.2,1.1391]
[1645215934118,9.621e-05,2783.4,2783.2,1.14094305]
[1645215935124,9.621e-05,2783.4,2783.2,1.1391]
[1645215935518,9.621e-05,2783.4,2783.2,1.14094305]
[1645215936269,0.01932083,2783.4,2783.2,1.1391]
[1645215936768,0.01932083,2783.4,2783.2,1.14127363]
[1645215937568,0.01932083,2783.4,2783.2,1.1391]
[1645215937771,0.01932083,2783.4,2783.2,1.14127363]
[1645215938672,0.01932083,2783.4,2783.2,1.1391]
[1645215939069,0.01932083,2783.4,2783.2,1.14127363]
[1645215939923,0.01932083,2783.4,2783.2,1.1391]
[1645215940319,0.01932083,2783.4,2783.2,2.0292453]
[1645215940521,0.01932083,2783.4,2783.2,1.14127363]
[1645215940920,0.00080388,2783.5,2783.2,1.14127363]
[1645215941120,0.00080388,2783.5,2783.2,1.1391]
[1645215941522,0.00080388,2783.5,2783.2,1.14127363]
[1645215941722,0.00080388,2783.5,2783.2,2.03987543]
[1645215942324,0.00080388,2783.5,2783.2,2.0377018]
[1645215942724,0.00080388,2783.5,2783.2,2.03987539]
[1645215943669,0.00080388,2783.5,2783.2,2.0377018]
[1645215943869,0.00080388,2783.5,2783.2,2.03987539]
[1645215944672,0.00080388,2783.5,2783.2,2.0377018]
[1645215945073,0.00080388,2783.5,2783.2,2.03987539]
[1645215945671,0.00080388,2783.5,2783.3,0.89848]
[1645215945872,0.00080388,2783.5,2783.2,2.03987539]
[1645215946575,0.00080388,2783.5,2783.2,1.14127359]
[1645215946773,0.90086488,2783.5,2783.2,1.14127359]
[1645215947021,0.900061,2783.4,2783.2,1.14127359]
[1645215947319,0.900061,2783.3,2783.2,1.1391]
[1645215947520,1.63609454,2783.3,2783.2,1.14127359]
[1645215947715,1.63609454,2783.3,2783.2,0.00217359]
[1645215947917,0.73603354,2783.3,2783.2,0.00217359]
[1645215948416,1.63609454,2783.3,2782.8,4.91072386]
[1645215948616,0.73603354,2783.3,2783.1,0.00217367]
[1645215949620,0.73603354,2783.3,2782.8,4.91072386]
[1645215949923,0.900061,2783.4,2783.3,0.16281986]
[1645215950965,1.89968388,2783.5,2783.3,0.16281986]
[1645215951165,0.89968388,2783.5,2783.3,0.16281986]
[1645215951365,1.89968388,2783.5,2783.3,0.11281986]
[1645215951570,1.89968388,2783.5,2783.3,0.07161022]
[1645215951571,3.25066354,2783.5,2783.3,0.07161022]
[1645215952365,3.25066354,2783.5,2783.3,0.07378377]
[1645215953268,0.90369692,2783.4,2783.3,0.07161022]
[1645215953567,0.90369692,2783.4,2783.3,0.07378377]
[1645215953770,0.00080388,2783.5,2783.3,0.02378377]
[1645215954439,0.00080388,2783.5,2783.3,0.02161022]
[1645215954825,0.00080388,2783.5,2783.4,0.8743573]
[1645215960286,0.00080388,2783.5,2783.3,0.02161022]
[1645215960686,0.00080388,2783.5,2783.3,0.02378373]
[1645215960880,0.01909248,2783.5,2783.3,0.02378373]
[1645215961079,0.9227894,2783.5,2783.3,0.02378373]
[1645215961283,0.9227894,2783.5,2783.3,0.00217351]
[1645215961284,2.11232876,2783.5,2783.3,0.00217351]
[1645215961482,4.85097966,2783.4,2783.3,0.00217351]
[1645215961682,1.35097966,2783.4,2783.2,1.1561]
[1645215961934,1.35097966,2783.4,2783.3,0.00217355]
[1645215962722,1.35097966,2783.4,2783.1,0.8988856]
[1645215962925,0.90422418,2783.2,2783.1,0.8988856]
[1645215963330,0.90422418,2783.3,2783.1,0.8988856]
[1645215963525,0.90422418,2783.3,2783.1,1.7976956]
[1645215964025,2.16215721,2783.4,2783.1,1.7976956]
[1645215964224,2.16215721,2783.4,2783.1,1.79986931]
[1645215964429,2.16215721,2783.4,2783.1,0.90105931]
[1645215964624,0.90453129,2783.2,2783.1,0.90105931]
[1645215964832,15.80097966,2783.2,2783.1,0.00217371]
[1645215965030,4.85097966,2783.2,2783.1,0.00217371]
[1645215965225,4.85668913,2783.2,2782.8,0.00372386]
[1645215965428,0.90402828,2783.1,2782.8,0.00372386]
[1645215965674,0.90402828,2783.2,2782.8,0.00372386]
[1645215965875,0.94155528,2783.4,2782.8,0.00372386]
[1645215966070,0.037527,2783.4,2782.8,0.00372386]
[1645215966671,0.037527,2783.4,2783.0,0.00217379]
[1645215966870,0.037527,2783.4,2783.1,0.68291484]
[1645215967474,0.037527,2783.4,2783.1,2.48006484]
[1645215967475,0.01917882,2783.4,2783.1,2.48006484]
[1645215967670,0.01917882,2783.4,2783.2,1.2191]
[1645215967969,0.01917882,2783.4,2783.2,4.8131251]
[1645215969170,1.35604242,2784.0,2783.4,6.5]
[1645215969460,1.80623209,2784.3,2783.5,11.57835401]
[1645215969461,0.14729432,2784.1,2783.5,11.57835401]
[1645215969631,0.00263819,2784.4,2783.6,10.72215864]
[1645215969830,1.35604242,2784.8,2783.9,10.95]
[1645215970035,0.35604242,2785.0,2784.1,15.94990094]
[1645215970228,1.66227451,2785.5,2785.0,0.89422317]
[1645215970433,0.70831171,2785.8,2785.1,0.89803]
[1645215970738,9.745e-05,2786.0,2785.1,3.5918328]
[1645215970930,9.745e-05,2786.0,2785.1,7.4603328]
[1645215971130,9.745e-05,2786.0,2785.2,1.2271]
[1645215971527,0.00198514,2785.7,2785.2,1.2271]
[1645215971734,0.00198514,2785.7,2785.4,0.89789]
[1645215971928,0.00198514,2785.7,2785.4,0.63522755]
[1645215972436,0.72324476,2785.8,2785.4,0.63522755]
[1645215972629,0.72324476,2785.8,2785.3,0.8979343]
[1645215972829,0.72324476,2785.8,2785.2,4.8187385]
[1645215972830,0.00263858,2785.7,2785.2,1.7958685]
[1645215973177,10.95263858,2785.7,2785.1,3.8685]
[1645215973373,0.1794,2785.6,2785.1,4.7667741]
[1645215973573,0.1794,2785.6,2784.9,1.7965111]
[1645215973782,10.95,2785.3,2783.8,4.3858]
[1645215973981,10.95,2784.9,2783.8,4.38797971]
[1645215974175,10.95,2784.9,2784.1,1.7969871]
[1645215974382,1.0,2784.8,2784.1,1.7969871]
[1645215974780,0.89852,2784.7,2784.1,1.7969871]
[1645215975176,0.00256536,2784.6,2784.1,1.7969871]
[1645215975977,10.95256536,2784.6,2784.1,1.7969871]
[1645215976178,10.95,2784.4,2783.7,2.0500135]
[1645215976382,12.13196534,2784.5,2783.8,0.00217971]
[1645215976579,1.0,2784.3,2783.8,0.00217971]
[1645215976779,1.18196534,2784.5,2783.8,0.00217971]
[1645215977021,1.18196534,2784.5,2783.8,0.83249834]
[1645215977022,0.18196534,2784.5,2783.8,0.83249834]
[1645215977218,1.1794,2784.5,2783.9,0.8986413]
[1645215977419,10.95,2784.9,2783.9,0.8986413]
[1645215977420,0.1794,2784.8,2783.9,0.8986413]
[1645215977623,0.1794,2784.8,2783.8,2.62745743]
[1645215977624,0.0025652,2784.5,2783.8,2.62963714]
[1645215977821,0.0025652,2784.5,2783.8,6.12963714]
[1645215978023,0.0025652,2784.5,2783.9,0.89849]
[1645215978223,0.0025652,2784.5,2784.0,5.59631]
[1645215978426,0.0025652,2784.5,2784.2,0.89808]
[1645215978621,1.35381782,2785.3,2784.7,0.67736738]
[1645215978924,0.00263871,2784.5,2784.2,7.0923129]
[1645215979120,0.00263871,2784.5,2784.3,1.79649]
[1645215979421,0.00263871,2784.5,2784.4,3.3757]
[1645215979422,3.871e-05,2784.5,2784.4,3.3757]
[1645215979824,1.35381782,2785.4,2784.4,4.27385]
[1645215980025,1.35381782,2785.4,2785.1,0.70157021]
[1645215980222,1.35381782,2785.5,2785.1,0.70157021]
[1645215980422,0.1794,2785.9,2785.0,0.8981]
[1645215980423,1.35381782,2785.4,2785.0,0.8981]
[1645215980676,1.35381782,2785.4,2784.6,2.6944788]
[1645215981165,1.35381782,2785.4,2785.0,1.7962314]
[1645215981369,2.80423639,2785.6,2785.0,1.7962314]
[1645215981370,1.35381782,2785.3,2785.0,1.7962314]
[1645215981571,1.35381782,2785.2,2784.5,1.1387]
[1645215981767,1.35381782,2785.0,2784.4,3.3757]
[1645215981968,11.468,2784.9,2784.4,3.3757]
[1645215982169,12.82181782,2784.9,2784.4,3.3757]
[1645215982366,0.00263878,2784.8,2784.4,3.3757]
[1645215982566,0.518,2784.7,2784.4,3.3757]
[1645215983169,11.468,2784.7,2784.2,6.2484929]
[1645215983369,1.35381782,2784.6,2784.0,0.01693623]
[1645215983569,16.32181782,2784.5,2784.0,0.0191223]
[1645215983768,10.95,2784.3,2784.0,0.0191223]
[1645215983968,10.95,2784.1,2784.0,0.0191223]
[1645215984174,12.36674,2784.1,2784.0,0.0191223]
[1645215984622,15.86674,2784.1,2784.0,0.01693623]
[1645215984818,13.36674,2784.1,2784.0,0.01693623]
[1645215985719,16.86674,2784.1,2784.0,0.01693623]
[1645215985922,18.39995782,2784.1,2783.9,0.01884919]
[1645215986120,15.6294,2784.0,2783.9,0.01884919]
[1645215986420,16.1474,2784.0,2783.9,0.01884919]
[1645215986822,12.6474,2784.0,2783.9,0.01884919]
[1645215987018,12.6474,2784.0,2783.9,0.00625649]
[1645215987223,12.468,2784.0,2783.9,0.00625649]
[1645215987620,12.6476,2784.0,2783.9,0.00625649]
[1645215987820,12.468,2784.0,2783.9,0.00625649]
[1645215988885,15.968,2784.0,2783.9,0.00625649]
[1645215989088,12.6476,2784.0,2783.9,0.00625649]
[1645215989287,16.1476,2784.0,2783.9,0.00625649]
[1645215989489,12.9476,2784.0,2783.9,0.00625649]
[1645215990087,11.6476,2784.0,2783.9,0.00625649]
[1645215990292,11.468,2784.0,2783.9,0.00625649]
[1645215990787,11.50066062,2784.0,2783.8,0.00218622]
[1645215990989,11.50066062,2784.0,2783.5,0.78391127]
[1645215991188,11.50066062,2784.0,2783.8,0.00218622]
[1645215991788,11.50066062,2784.0,2783.4,1.797379]
[1645215992022,11.50066062,2784.0,2783.8,0.00218626]
[1645215992423,11.95,2783.9,2783.8,0.00218626]
[1645215992616,12.468,2783.9,2783.8,0.00218626]